bitfinex/quotes_ETHUSD_20240910
["timestamp","ask_amount","ask_price","bid_price","bid_amount"]
[1725970161829,0.04254905,2353.8,2353.4,0.00080424]
[1725970163003,2.33954905,2353.9,2353.4,1.49635099]
[1725970163206,0.04254905,2353.9,2353.5,0.55]
[1725970163460,2.34094905,2354.1,2353.6,1.49554675]
[1725970163745,2.34094905,2354.1,2353.8,1.49554675]
[1725970164045,2.34094905,2354.1,2353.9,0.55]
[1725970164549,0.04254905,2354.0,2353.7,0.55]
[1725970165118,2.2984,2354.1,2353.7,0.55]
[1725970167904,0.04254905,2354.0,2353.7,0.55]
[1725970169917,2.2984,2354.1,2353.7,0.55]
[1725970169918,2.2984,2354.1,2353.8,1.49554675]
[1725970170142,2.2984,2354.1,2353.9,0.55]
[1725970176665,0.04254905,2354.0,2353.9,0.55]
[1725970177059,0.04254905,2354.0,2353.7,0.55]
[1725970179157,2.32134905,2354.3,2353.8,1.49554675]
[1725970179402,0.04254905,2354.2,2353.9,0.55]
[1725970180252,2.2788,2354.3,2354.0,1.49554675]
[1725970180253,2.32134905,2354.3,2354.0,1.49554675]
[1725970180454,0.04254905,2354.3,2354.1,0.55]
[1725970181304,0.04254905,2354.4,2354.1,0.55]
[1725970181504,0.4077914,2354.4,2354.2,1.49554675]
[1725970181716,0.4077914,2354.4,2354.3,0.55]
[1725970184810,3.65242347,2354.5,2354.3,0.55]
[1725970184811,2.33754905,2354.5,2354.3,0.55]
[1725970185190,3.2276999,2354.5,2354.3,0.55]
[1725970185420,3.2276999,2354.5,2354.1,0.55]
[1725970185625,0.71337232,2354.4,2354.1,0.55]
[1725970185914,0.04254905,2354.3,2354.1,0.55]
[1725970186808,0.04254905,2354.4,2354.2,1.49554675]
[1725970187117,0.04254905,2354.4,2354.3,0.55]
[1725970188592,0.75625067,2354.4,2354.3,0.55]
[1725970189151,0.89015085,2354.6,2354.3,0.63495394]
[1725970189351,2.22537713,2354.9,2354.4,4.10629682]
[1725970189652,0.89015085,2355.0,2354.7,1.49554675]
[1725970189821,1.60181159,2355.0,2354.9,1.49554675]
[1725970190031,2.6693027,2355.0,2354.9,1.49554675]
[1725970190231,2.6693027,2355.0,2354.9,2.04554675]
[1725970190445,1.77915185,2355.0,2354.9,2.04554675]
[1725970190595,3.11437813,2355.0,2354.9,2.04554675]
[1725970190818,1.77915185,2355.0,2354.9,2.04554675]
[1725970191101,2.66951182,2355.0,2354.9,2.04554675]
[1725970191304,1.77915185,2355.0,2354.9,2.04554675]
[1725970191803,3.3983809,2355.0,2354.9,0.55]
[1725970192005,3.3983809,2355.0,2354.8,0.55]
[1725970192006,6.1120815,2355.0,2354.8,0.55]
[1725970192199,2.71220106,2354.9,2354.8,0.55]
[1725970193811,0.75425798,2354.9,2354.8,0.55]
[1725970194230,2.16949405,2354.9,2354.5,1.49554675]
[1725970194533,4.93824,2354.8,2354.3,1.49554675]
[1725970194722,2.71208905,2354.7,2354.3,1.49554675]
[1725970194932,0.71170076,2354.6,2354.3,1.49554675]
[1725970195132,0.04254905,2354.5,2354.3,1.49554675]
[1725970195860,0.04254905,2354.5,2354.4,0.55]
[1725970199872,0.89037968,2354.6,2354.4,0.55]
[1725970200173,0.04254905,2354.6,2354.5,1.49554675]
[1725970200332,0.89037968,2354.7,2354.5,2.04554675]
[1725970200667,0.89037968,2354.8,2354.6,0.55]
[1725970200999,0.89037968,2355.3,2354.8,2.3374]
[1725970201143,0.71158806,2355.2,2355.1,1.49554675]
[1725970201467,1.6445316,2355.2,2355.1,0.55]
[1725970202029,1.6445316,2355.2,2355.0,0.55]
[1725970202573,1.6445316,2355.2,2354.9,0.55]
[1725970202725,0.93292873,2355.2,2354.9,0.55]
[1725970202927,0.89037968,2355.2,2354.9,0.55]
[1725970210478,0.89037968,2355.2,2355.1,2.9707]
[1725970210781,0.89037968,2355.2,2355.1,0.55]
[1725970213482,0.71056977,2355.4,2355.1,0.55]
[1725970213688,2.39927552,2355.5,2355.2,3.24482786]
[1725970213844,0.89037968,2355.6,2355.4,3.24482786]
[1725970214037,0.89037968,2355.7,2355.5,0.55]
[1725970214736,1.60051257,2355.7,2355.5,0.55]
[1725970214957,0.89037968,2355.7,2355.5,0.55]
[1725970215473,0.89037968,2355.9,2355.6,3.24482786]
[1725970215671,0.93292873,2356.0,2355.7,0.55]
[1725970215979,0.70966358,2355.9,2355.7,0.55]
[1725970216184,0.89037968,2355.9,2355.7,0.55]
[1725970216679,2.66410386,2355.9,2355.7,0.55]
[1725970216979,0.89037968,2355.9,2355.7,0.55]
[1725970217277,0.93292873,2356.0,2355.7,0.55]
[1725970217775,0.04254905,2356.0,2355.7,0.55]
[1725970218820,1.39227423,2356.0,2355.7,0.55]
[1725970220002,0.50189455,2356.0,2355.7,0.55]
[1725970221178,1.39227423,2356.0,2355.7,0.55]
[1725970222014,0.50189455,2356.0,2355.7,0.55]
[1725970227490,2.4239,2355.9,2355.7,0.55]
[1725970227692,0.33512851,2355.8,2355.5,1.49679877]
[1725970227891,0.04254905,2355.8,2355.5,1.49679877]
[1725970228988,0.04254905,2355.8,2355.6,0.55]
[1725970229189,0.93292873,2356.1,2355.7,1.49679877]
[1725970229423,0.70966779,2356.0,2355.9,1.49679877]
[1725970229629,0.70966779,2356.0,2355.9,2.04679877]
[1725970229993,0.93292873,2356.1,2355.9,2.04679877]
[1725970230629,0.93292873,2356.1,2356.0,0.55]
[1725970230803,2.70744161,2356.1,2356.0,0.55]
[1725970231619,1.81706193,2356.1,2356.0,0.55]
[1725970232021,2.53716092,2356.1,2356.0,0.55]
[1725970232323,3.42475663,2356.1,2356.0,0.55]
[1725970232490,3.8723872,2356.1,2356.0,0.55]
[1725970232690,3.8723872,2356.1,2355.8,0.55]
[1725970232890,2.6628486,2356.0,2355.8,0.55]
[1725970235280,1.33522628,2356.1,2356.0,2.4907]
[1725970235434,0.88774417,2356.2,2356.0,3.0407]
[1725970235769,0.88774417,2356.3,2356.1,2.04679877]
[1725970236225,2.66320722,2356.3,2356.1,2.04679877]
[1725970236422,0.04254905,2356.2,2356.1,2.04679877]
[1725970236664,0.71018522,2356.2,2356.1,0.55]
[1725970236870,0.75273427,2356.2,2356.0,0.55]
[1725970237067,0.04254905,2356.2,2356.0,0.55]
[1725970237366,0.93029322,2356.2,2356.0,0.55]
[1725970238227,0.04254905,2356.2,2356.1,1.49679877]
[1725970238431,2.66301012,2356.2,2356.1,2.04679877]
[1725970238770,0.88774417,2356.2,2356.1,0.55]
[1725970239070,0.88774417,2356.2,2356.0,0.55]
[1725970239474,2.66301012,2356.2,2356.0,0.55]
[1725970241528,2.66301012,2356.2,2356.1,1.49679877]
[1725970241730,2.66301012,2356.2,2356.1,2.04679877]
[1725970242058,2.66301012,2356.2,2356.1,0.55]
[1725970242234,2.66301012,2356.2,2356.0,0.55]
[1725970242636,2.66301012,2356.1,2356.0,0.55]
[1725970243079,2.66436505,2356.1,2356.0,0.55]
[1725970243373,0.71064835,2356.1,2356.0,0.55]
[1725970243533,0.88774417,2356.1,2356.0,0.55]
[1725970244066,2.04587463,2356.1,2356.0,0.55]
[1725970244275,3.11225497,2356.1,2355.8,0.55]
[1725970244444,1.81957774,2356.0,2355.7,0.55]
[1725970244631,1.77702869,2355.9,2355.7,0.55]
[1725970245175,1.77702869,2355.9,2355.8,1.49679877]
[1725970245477,1.77702869,2355.9,2355.8,2.04679877]
[1725970245766,3.11225497,2355.9,2355.8,2.04679877]
[1725970247972,3.11448243,2355.9,2355.8,2.04679877]
[1725970248808,1.77925615,2355.9,2355.8,2.04679877]
[1725970249009,1.77925615,2355.9,2355.8,2.55482564]
[1725970249604,2.04692874,2356.0,2355.8,5.04062564]
[1725970249805,1.77923614,2355.9,2355.8,5.04062564]
[1725970250019,1.77923608,2355.9,2355.8,5.04062564]
[1725970250172,1.06753362,2355.9,2355.8,5.04062564]
[1725970250512,0.71170246,2355.9,2355.8,5.04062564]
[1725970251011,0.71170246,2356.0,2355.8,5.04062564]
[1725970251170,1.77923218,2355.9,2355.8,4.53259877]
[1725970251372,0.71170246,2355.9,2355.8,4.53259877]
[1725970251568,1.77923456,2355.9,2355.8,4.53259877]
[1725970252088,1.77923456,2355.9,2355.8,2.04679877]
[1725970252887,3.11446084,2355.9,2355.8,2.04679877]
[1725970253086,2.04707254,2355.9,2355.8,2.04679877]
[1725970253431,3.11484193,2355.9,2355.8,2.04679877]
[1725970254036,2.66988914,2355.9,2355.8,2.04679877]
[1725970254185,1.77961565,2355.9,2355.8,2.54743564]
[1725970254386,3.11484193,2355.9,2355.8,2.54743564]
[1725970255031,1.77961565,2355.9,2355.8,2.54743564]
[1725970255538,3.11484193,2355.9,2355.8,2.54743564]
[1725970257516,3.15739098,2355.9,2355.8,0.55]
[1725970257692,3.15739098,2355.9,2355.6,2.95956988]
[1725970257693,3.60246641,2355.9,2355.7,0.55]
[1725970257893,3.11613385,2355.8,2355.7,0.55]
[1725970258095,3.11916197,2355.8,2355.7,0.55]
[1725970258325,1.78264377,2355.8,2355.7,0.55]
[1725970258505,3.11916197,2355.8,2355.7,0.55]
[1725970260931,3.11916197,2355.8,2355.7,0.97597532]
[1725970261492,3.56294548,2355.8,2355.3,7.48]
[1725970261737,1.33751163,2355.6,2355.5,2.2727]
[1725970262037,0.71361091,2355.6,2355.5,2.69874201]
[1725970262240,0.71435279,2355.6,2355.5,3.07463393]
[1725970262537,0.89159729,2355.7,2355.5,3.07463393]
[1725970262735,0.89159729,2355.7,2355.6,0.42604201]
[1725970262907,2.67751249,2355.7,2355.6,2.55773765]
[1725970263105,2.67751249,2355.7,2355.6,2.56743173]
[1725970263334,2.67751249,2355.7,2355.6,5.46298725]
[1725970263335,0.71436608,2355.7,2355.6,5.46298725]
[1725970263514,0.71436608,2355.7,2355.6,4.94235429]
[1725970264401,2.67747038,2355.7,2355.6,4.94235429]
[1725970264597,2.67744303,2355.7,2355.6,4.94235429]
[1725970264937,0.71436608,2355.7,2355.6,5.43658972]
[1725970266094,2.6774225,2355.7,2355.6,5.43658972]
[1725970266293,0.71433008,2355.7,2355.6,5.43658972]
[1725970266539,0.89159729,2355.9,2355.6,8.43658972]
[1725970266747,0.7164387,2355.8,2355.7,1.60440253]
[1725970267042,0.89159729,2355.9,2355.8,1.49679877]
[1725970267248,2.68267339,2355.9,2355.8,3.28448809]
[1725970267400,0.89159729,2356.0,2355.8,5.64598809]
[1725970267734,0.89159729,2356.2,2356.0,2.3615]
[1725970267901,1.33751163,2356.2,2356.1,0.97585552]
[1725970268094,1.33751163,2356.2,2356.1,1.59100416]
[1725970268095,3.12825446,2356.2,2356.1,1.59100416]
[1725970268338,2.68203599,2356.2,2356.1,1.59100416]
[1725970268850,0.71629713,2356.2,2356.1,1.59100416]
[1725970269037,2.6816655,2356.2,2356.1,1.59100416]
[1725970269407,0.71629713,2356.2,2356.1,1.59100416]
[1725970269601,0.71629713,2356.2,2356.1,1.59071743]
[1725970269935,2.68143132,2356.2,2356.1,1.59071743]
[1725970270449,2.68143132,2356.2,2356.1,1.59074169]
[1725970270650,0.71629713,2356.2,2356.1,1.59074169]
[1725970271156,2.68316911,2356.2,2356.1,1.59074169]
[1725970271455,0.89129316,2356.3,2356.1,1.59074169]
[1725970271624,0.89129316,2356.3,2356.2,1.49679877]
[1725970271832,2.68363119,2356.3,2356.2,2.74138269]
[1725970272540,0.71693521,2356.3,2356.2,5.74138269]
[1725970272867,1.78030171,2356.6,2356.3,2.4209]
[1725970272868,0.89129316,2356.6,2356.3,2.4209]
[1725970273160,0.71675416,2356.5,2356.4,0.55]
[1725970273338,1.96642441,2356.6,2356.5,2.4451]
[1725970273339,0.89129316,2356.6,2356.5,2.4451]
[1725970273541,1.33751163,2356.7,2356.5,3.448055]
[1725970273542,0.89129316,2356.7,2356.5,3.448055]
[1725970273726,0.89129316,2356.8,2356.6,0.9498055]
[1725970273925,2.22880479,2357.0,2356.8,2.4451]
[1725970274128,0.89129316,2357.0,2356.9,2.29979394]
[1725970274331,0.89129316,2357.1,2356.9,2.38464253]
[1725970274534,0.89129316,2357.2,2357.0,1.49679877]
[1725970274707,2.68080347,2357.2,2357.1,0.55]
[1725970274908,0.93526826,2357.3,2357.1,0.55]
[1725970275175,0.0439751,2357.3,2357.2,3.93939877]
[1725970275379,0.0439751,2357.3,2357.2,4.48939877]
[1725970275877,0.0439751,2357.3,2357.2,2.04679877]
[1725970276079,0.08652415,2357.3,2357.2,0.55]
[1725970276230,1.31676904,2357.3,2357.2,0.55]
[1725970276578,3.10468681,2357.3,2357.1,0.55]
[1725970276765,0.97781731,2357.3,2357.1,0.55]
[1725970279843,0.55922704,2357.3,2357.1,0.55]
[1725970281482,0.08652415,2357.3,2357.1,0.55]
[1725970285808,0.0439751,2357.3,2357.1,0.55]
[1725970293186,0.0439751,2357.3,2357.2,5.6254172]
[1725970293418,0.0439751,2357.3,2357.2,6.1754172]
[1725970293708,0.0439751,2357.3,2357.2,6.26025833]
[1725970293952,0.0439751,2357.3,2357.2,6.80144303]
[1725970295685,0.0439751,2357.3,2357.2,6.88626757]
[1725970296083,3.30539316,2358.2,2357.3,2.4548]
[1725970296084,2.45664905,2358.2,2357.3,2.4548]
[1725970296294,2.45664905,2358.2,2357.8,3.2389172]
[1725970296500,3.30539316,2358.5,2358.0,3.2389172]
[1725970296721,3.30539316,2358.5,2358.3,3.2389172]
[1725970296722,2.4141,2358.5,2358.3,3.2389172]
[1725970297084,0.04254905,2358.7,2358.3,3.2389172]
[1725970297516,1.78030171,2359.1,2358.0,0.08479999]
[1725970297517,0.89129316,2359.3,2358.6,3.2389172]
[1725970297723,0.04254905,2359.2,2358.8,3.2389172]
[1725970297905,0.04254905,2359.2,2358.4,2.2947]
[1725970297906,0.04254905,2359.2,2358.6,3.2389172]
[1725970298100,2.4807,2359.1,2358.7,0.55]
[1725970298309,2.4807,2359.1,2358.4,3.2389172]
[1725970298310,0.29487396,2359.0,2358.5,0.55]
[1725970304814,2.2991,2358.9,2358.5,0.55]
[1725970305029,0.04254905,2358.8,2358.5,0.55]
[1725970308364,2.2991,2358.9,2358.6,3.2389172]
[1725970308518,2.2991,2358.9,2358.7,0.55]
[1725970309403,0.04254905,2358.8,2358.7,0.55]
[1725970309572,0.04254905,2358.8,2358.5,0.55]
[1725970312163,2.3191,2358.7,2358.3,0.55]
[1725970312358,0.04254905,2358.6,2358.3,0.55]
[1725970312871,0.04254905,2358.6,2357.8,7.48]
[1725970312872,2.3191,2358.5,2357.8,7.48]
[1725970313076,2.3191,2358.3,2357.6,3.2389172]
[1725970313263,0.04254905,2358.2,2357.5,7.48]
[1725970313499,2.3191,2358.1,2357.5,7.48]
[1725970313690,0.27871396,2358.0,2357.5,7.48]
[1725970313909,2.4267,2357.9,2357.2,3.2389172]
[1725970314129,0.04254905,2357.8,2357.2,3.2389172]
[1725970314598,0.04254905,2357.8,2357.1,7.48]
[1725970314805,2.4154,2357.7,2357.1,7.48]
[1725970314995,0.04254905,2357.6,2357.0,3.2389172]
[1725970317032,0.04254905,2357.6,2356.8,7.48]
[1725970317033,2.3888,2357.5,2356.8,7.48]
[1725970317336,0.28568395,2357.4,2356.8,7.48]
[1725970317691,2.2513,2357.3,2356.8,7.48]
[1725970318035,2.2513,2357.3,2356.1,2.4142]
[1725970318036,0.04254905,2357.2,2356.4,10.7189172]
[1725970318250,0.04254905,2357.2,2356.4,4.31080892]
[1725970318416,0.04254905,2357.2,2356.4,3.2389172]
[1725970319598,0.04254905,2357.2,2356.5,0.55]
[1725970320445,0.04254905,2357.2,2356.6,3.2389172]
[1725970320744,0.04254905,2357.2,2356.7,0.55]
[1725970321444,0.04254905,2357.2,2356.8,3.2389172]
[1725970321648,0.04254905,2357.2,2356.9,0.55]
[1725970333207,0.04254905,2357.6,2357.0,3.32377832]
[1725970333373,0.04254905,2357.6,2357.2,3.2389172]
[1725970333577,0.04254905,2357.6,2357.3,0.55]
[1725970334073,0.04254905,2357.7,2357.3,0.55]
[1725970334637,3.2389172,2359.2,2357.3,0.55]
[1725970334638,2.2558,2359.0,2357.7,2.2579]
[1725970334913,0.04254905,2358.9,2358.5,3.2389172]
[1725970335064,0.04254905,2358.7,2358.6,0.55]
[1725970336000,0.04254905,2358.7,2358.4,0.55]
[1725970336581,2.2558,2358.6,2358.4,0.55]
[1725970336795,0.04254905,2358.5,2358.4,0.55]
[1725970338011,0.04254905,2358.5,2358.2,0.55]
[1725970339513,2.4443,2358.4,2357.7,3.2389172]
[1725970339678,2.4443,2358.4,2357.5,3.2389172]
[1725970339679,0.04254905,2358.3,2357.5,3.2389172]
[1725970339874,0.61421745,2358.3,2357.5,5.82171809]
[1725970340410,0.61421745,2358.3,2357.7,3.2389172]
[1725970340973,0.61421745,2358.3,2357.4,7.48]
[1725970340974,2.4443,2358.2,2357.5,3.2389172]
[1725970341196,0.04254905,2358.1,2357.6,0.55]
[1725970342610,0.04254905,2358.1,2357.4,7.48]
[1725970342775,3.40898597,2358.1,2357.4,7.48]
[1725970343797,2.3091,2358.0,2357.4,7.48]
[1725970344007,0.04254905,2357.9,2357.5,0.55]
[1725970344410,0.04254905,2357.9,2357.4,0.55]
[1725970344620,0.61435765,2357.9,2357.4,0.55]
[1725970346014,0.61435765,2357.9,2357.5,3.2389172]
[1725970346215,0.61435765,2357.9,2357.6,0.55]
[1725970347229,0.04254905,2357.9,2357.6,0.55]
[1725970349030,0.04254905,2357.9,2357.4,0.55]
[1725970349712,0.04254905,2357.9,2357.5,3.2389172]
[1725970349909,0.04254905,2357.9,2357.4,0.55]
[1725970349910,0.04254905,2358.1,2357.7,3.2389172]
[1725970350219,2.3628,2358.3,2357.6,0.63483115]
[1725970350220,2.40534905,2358.3,2357.9,3.2389172]
[1725970350542,0.04254905,2358.2,2357.9,3.2389172]
[1725970350691,0.04254905,2358.2,2358.0,0.55]
[1725970353237,0.04254905,2358.3,2358.1,3.2389172]
[1725970353400,0.04254905,2358.6,2358.2,0.55]
[1725970353595,0.04254905,2358.6,2358.3,3.2389172]
[1725970353795,0.04254905,2358.6,2358.4,0.55]
[1725970354300,0.04254905,2358.6,2358.2,0.55]
[1725970355739,0.92608875,2358.6,2358.2,0.55]
[1725970356552,0.71556017,2358.5,2358.2,0.55]
[1725970356714,0.04254905,2358.4,2358.0,0.55]
[1725970357609,2.35544905,2358.4,2358.0,0.55]
[1725970357802,0.71587656,2358.3,2357.7,3.2389172]
[1725970358027,0.04254905,2358.2,2357.7,3.2389172]
[1725970359263,0.04254905,2358.2,2357.8,0.55]
[1725970364266,0.04254905,2358.2,2357.9,3.2389172]
[1725970364467,0.92608875,2358.3,2358.0,0.55]
[1725970364770,1.4784689,2358.3,2358.0,0.55]
[1725970365479,0.71631261,2358.2,2358.0,0.55]
[1725970365774,0.04254905,2358.1,2358.0,0.55]
[1725970365983,0.04254905,2358.2,2358.0,0.55]
[1725970367247,0.92608875,2358.2,2358.0,0.55]
[1725970367789,1.32530955,2358.3,2358.1,3.2389172]
[1725970367790,0.8835397,2358.3,2358.1,3.2389172]
[1725970367935,2.67489378,2358.3,2358.2,0.55]
[1725970368272,2.67494464,2358.3,2358.2,0.55]
[1725970368580,2.67529107,2358.3,2358.0,0.55]
[1725970368872,3.23898875,2358.4,2358.0,0.55]
[1725970369226,2.67590636,2358.3,2358.0,0.55]
[1725970369675,0.92608875,2358.4,2358.0,0.55]
[1725970369900,0.92608875,2358.4,2358.0,1.20546129]
[1725970370029,0.04254905,2358.4,2358.1,3.2389172]
[1725970370230,0.92608875,2358.4,2358.2,0.55]
[1725970370738,0.04254905,2358.4,2358.2,0.55]
[1725970371239,0.92608875,2358.4,2358.2,0.55]
[1725970372571,0.92608875,2358.4,2358.1,0.55]
[1725970372877,0.92608875,2358.4,2358.0,1.11722389]
[1725970374470,0.71764289,2358.3,2358.0,1.11722389]
[1725970375275,0.71764289,2358.3,2358.0,0.55]
[1725970375476,0.92608875,2358.4,2358.0,0.55]
[1725970375661,0.71765711,2358.3,2358.0,0.55]
[1725970375973,0.8835397,2358.3,2358.0,0.55]
[1725970376134,1.60119681,2358.3,2357.9,0.55]
[1725970376336,2.67954744,2358.3,2357.9,0.63481237]
[1725970376634,2.67954744,2358.3,2357.9,0.55]
[1725970377129,0.92608875,2358.2,2357.9,0.55]
[1725970377286,3.2637397,2358.1,2357.6,2.4336]
[1725970377495,0.76157095,2358.0,2357.5,10.7189172]
[1725970377693,0.04254905,2358.0,2357.5,5.78516892]
[1725970377894,2.72371687,2358.0,2357.5,3.2389172]
[1725970378091,2.72371687,2358.0,2357.3,3.2389172]
[1725970378092,2.6812305,2357.9,2357.3,3.2389172]
[1725970378293,2.6812305,2357.9,2357.1,8.67593938]
[1725970378294,3.2637397,2357.7,2357.1,8.67593938]
[1725970378529,2.72455199,2357.6,2357.1,10.7189172]
[1725970378676,0.92608875,2357.6,2357.3,3.2389172]
[1725970378882,0.04254905,2357.6,2357.3,3.2389172]
[1725970379301,0.92608875,2357.7,2357.3,4.31080892]
[1725970379507,0.92608875,2357.8,2357.5,3.2389172]
[1725970379691,0.8835397,2357.8,2357.6,0.32389172]
[1725970380016,0.8835397,2357.9,2357.6,0.32389172]
[1725970380198,1.60317364,2357.8,2357.6,0.32389172]
[1725970380595,1.60317364,2357.8,2357.7,0.55]
[1725970381125,1.60317364,2357.8,2357.6,0.55]
[1725970381326,0.71963394,2357.7,2357.6,0.55]
[1725970381485,1.60317364,2357.7,2357.6,0.55]
[1725970382503,2.42339015,2357.7,2357.3,3.2389172]
[1725970382687,2.68863794,2357.6,2357.3,3.2389172]
[1725970383035,0.88955309,2357.6,2357.3,3.2389172]
[1725970383391,1.60943704,2357.6,2357.3,3.2389172]
[1725970383592,0.71988395,2357.5,2357.3,3.2389172]
[1725970383817,0.762433,2357.5,2357.3,3.2389172]
[1725970384120,1.32530955,2357.7,2357.4,0.55]
[1725970384121,0.93210214,2357.7,2357.4,0.55]
[1725970384358,0.71979827,2357.6,2357.4,0.55]
[1725970384565,2.68906775,2357.6,2357.4,0.55]
[1725970384722,0.88955309,2357.7,2357.5,3.2389172]
[1725970384917,0.88955309,2357.7,2357.4,0.92889172]
[1725970384918,2.01176855,2357.7,2357.6,0.55]
[1725970385158,1.84204076,2357.7,2357.4,0.55]
[1725970385359,1.6092781,2357.6,2357.4,0.55]
[1725970385532,0.7198253,2357.5,2357.4,0.55]
[1725970386165,4.42250096,2357.5,2356.8,7.48]
[1725970386469,0.88957342,2357.2,2356.7,2.3149]
[1725970386684,0.88957342,2357.2,2356.6,3.2389172]
[1725970386822,0.88957342,2357.2,2356.6,4.31080892]
[1725970386823,0.04254905,2357.1,2356.6,4.31080892]
[1725970387262,1.65449797,2357.1,2356.6,4.31080892]
[1725970387569,0.93212247,2357.1,2356.6,4.31080892]
[1725970388085,0.93212247,2357.1,2356.6,3.2389172]
[1725970388282,0.93212247,2357.1,2356.4,3.2389172]
[1725970388283,1.61171129,2357.0,2356.4,3.2389172]
[1725970388431,1.90864372,2356.9,2356.4,3.2389172]
[1725970388771,1.18650585,2356.9,2356.4,3.2389172]
[1725970389061,0.04254905,2356.9,2356.4,3.2389172]
[1725970389388,0.93212247,2356.9,2356.4,3.2389172]
[1725970389565,0.04254905,2356.9,2356.4,3.2389172]
[1725970390426,0.04254905,2356.9,2356.5,0.55]
[1725970391159,0.04254905,2357.0,2356.5,0.55]
[1725970391377,2.73504837,2357.0,2356.5,0.55]
[1725970391674,0.04254905,2357.0,2356.6,3.2389172]
[1725970391853,0.04254905,2357.0,2356.7,0.55]
[1725970395750,0.93212247,2357.2,2356.8,3.2389172]
[1725970396000,0.04254905,2357.2,2356.9,0.55]
[1725970397089,0.04254905,2357.3,2356.9,0.55]
[1725970397274,0.76264081,2357.3,2356.9,0.55]
[1725970397483,0.04254905,2357.3,2356.9,0.55]
[1725970397885,2.29624905,2357.5,2357.0,3.2389172]
[1725970398067,2.29624905,2357.5,2357.1,0.55]
[1725970398457,0.04254905,2357.5,2357.2,3.2389172]
[1725970398660,0.04254905,2357.6,2357.3,0.55]
[1725970398887,0.49266241,2357.6,2357.3,0.55]
[1725970399980,0.49266241,2357.6,2357.1,0.55]
[1725970400182,1.38223583,2357.6,2357.1,0.55]
[1725970400393,2.2772,2357.4,2357.1,0.55]
[1725970400595,0.04254905,2357.3,2357.1,0.55]
[1725970401297,2.3266,2357.2,2357.1,0.55]
[1725970401458,2.36914905,2357.2,2357.1,0.55]
[1725970401663,3.01272762,2357.2,2356.6,10.7189172]
[1725970401879,2.36914905,2357.2,2356.6,10.7189172]
[1725970402779,3.25872247,2357.2,2356.6,10.7189172]
[1725970402980,3.25872247,2357.2,2356.7,0.55]
[1725970403458,2.36914905,2357.2,2356.7,0.55]
[1725970403649,2.91620791,2357.2,2356.7,0.55]
[1725970405355,3.80578133,2357.2,2356.7,0.55]
[1725970405560,2.91620791,2357.2,2356.7,0.55]
[1725970405761,0.7197078,2357.1,2356.7,0.55]
[1725970405961,0.04254905,2357.0,2356.7,0.55]
[1725970406389,2.4331,2356.9,2356.5,0.55]
[1725970406574,0.04254905,2356.8,2356.5,0.55]
[1725970410055,0.04254905,2356.9,2356.6,3.2389172]
[1725970410285,0.04254905,2356.9,2356.7,0.55]
[1725970411207,2.4925,2357.2,2356.7,0.55]
[1725970411208,0.04254905,2357.1,2356.7,0.55]
[1725970411860,0.04254905,2357.1,2356.5,0.55]
[1725970413401,2.2985,2357.0,2356.5,0.55]
[1725970413566,0.04254905,2356.9,2356.5,0.55]
[1725970416316,0.04254905,2356.9,2356.5,0.92889172]
[1725970416966,2.38304905,2357.2,2356.8,3.2389172]
[1725970417169,0.04254905,2357.2,2356.9,0.55]
[1725970417478,0.04254905,2357.4,2356.9,0.55]
[1725970417677,0.49899241,2357.4,2356.9,0.55]
[1725970418692,1.38856583,2357.4,2356.9,0.55]
[1725970418880,3.19088091,2357.4,2356.9,0.55]
[1725970419076,1.38856583,2357.4,2356.9,0.55]
[1725970419317,0.72117493,2357.3,2356.9,0.55]
[1725970419523,0.04254905,2357.2,2356.9,0.55]
[1725970420607,0.93212247,2357.3,2356.9,0.55]
[1725970421518,0.72184462,2357.2,2356.9,0.55]
[1725970421959,0.88957342,2357.2,2356.9,0.55]
[1725970422227,2.6942832,2357.2,2356.9,0.55]
[1725970422384,0.72184462,2357.1,2356.9,0.55]
[1725970422582,0.93212247,2357.2,2356.9,0.55]
[1725970422828,0.72197439,2357.1,2356.9,0.55]
[1725970422995,0.93212247,2357.2,2356.9,0.55]
[1725970423191,0.93212247,2357.2,2356.7,0.55]
[1725970423192,0.88957342,2357.1,2356.7,0.55]
[1725970423719,0.04254905,2357.0,2356.7,0.55]
[1725970423884,2.73767124,2357.0,2356.6,0.55]
[1725970424094,0.93212247,2357.2,2356.6,4.43740969]
[1725970424426,0.88957342,2357.3,2356.9,2.4572]
[1725970424628,1.8061654,2357.2,2357.0,1.11961172]
[1725970424808,0.88957342,2357.2,2357.0,0.55]
[1725970425388,1.61204506,2357.2,2356.9,0.55]
[1725970425594,0.72247164,2357.1,2356.9,0.55]
[1725970425911,0.88957342,2357.2,2356.9,0.55]
[1725970426111,1.61221118,2357.2,2356.9,0.55]
[1725970427029,3.03173776,2357.1,2356.9,0.55]
[1725970427243,2.73883397,2357.0,2356.9,0.55]
[1725970427629,3.18362068,2357.0,2356.9,0.55]
[1725970428737,2.69621336,2357.0,2356.9,0.55]
[1725970429329,2.69621336,2357.0,2356.8,0.55]
[1725970429797,0.88950186,2357.1,2356.8,0.55]
[1725970430122,1.61276696,2357.0,2356.8,0.55]
[1725970430349,0.88950186,2357.1,2356.8,0.55]
[1725970430640,1.61407294,2357.0,2356.8,0.55]
[1725970430858,0.88950186,2357.0,2356.8,0.55]
[1725970431199,1.61407062,2357.0,2356.8,0.55]
[1725970431397,0.72484129,2356.9,2356.8,0.55]
[1725970431812,0.72485126,2356.9,2356.8,0.55]
[1725970432011,2.70162961,2356.9,2356.8,0.55]
[1725970432335,0.72485126,2356.9,2356.8,0.55]
[1725970433204,2.70171304,2356.9,2356.8,0.55]
[1725970433430,2.70175178,2356.9,2356.8,0.55]
[1725970433698,2.70175178,2356.9,2356.5,3.2389172]
[1725970433699,2.70175178,2356.9,2356.6,0.634859]
[1725970433898,0.88950186,2356.9,2356.7,5.6528172]
[1725970434097,0.88950186,2357.0,2356.8,0.55]
[1725970434315,1.97682081,2357.0,2356.8,0.55]
[1725970434522,0.72486367,2356.9,2356.8,0.55]
[1725970434844,0.72487503,2356.9,2356.8,0.55]
[1725970435000,0.88950186,2357.0,2356.8,0.55]
[1725970435207,1.97678736,2357.0,2356.8,0.55]
[1725970436042,0.72488381,2356.9,2356.8,0.55]